bitfinex-derivatives/quotes_BTCF0:USTF0_20250315
["timestamp","ask_amount","ask_price","bid_price","bid_amount"]
[1742026750349,0.6288161,83743.0,83738.0,0.28624059]
[1742026751655,0.6288161,83743.0,83741.0,0.119412]
[1742026751956,0.6288161,83743.0,83742.0,0.33423666]
[1742026752156,0.6288161,83743.0,83742.0,0.24652466]
[1742026752856,0.6288161,83743.0,83742.0,0.0317]
[1742026753353,0.6338161,83743.0,83742.0,0.0317]
[1742026753750,0.6288161,83743.0,83742.0,0.0317]
[1742026753960,0.6328161,83743.0,83742.0,0.0317]
[1742026754367,0.6338161,83743.0,83742.0,0.0317]
[1742026754567,0.6388161,83743.0,83742.0,0.0317]
[1742026754753,0.1194219,83735.0,83725.0,0.1194358]
[1742026754959,0.5634275,83735.0,83729.0,0.01205791]
[1742026755155,0.5734275,83735.0,83732.0,0.1194254]
[1742026755358,0.5734275,83735.0,83733.0,0.0318]
[1742026755558,0.6378275,83735.0,83733.0,0.0318]
[1742026755959,0.6408275,83735.0,83733.0,0.0318]
[1742026756965,0.6438275,83735.0,83733.0,0.0318]
[1742026757155,1.0046275,83735.0,83733.0,0.0318]
[1742026757357,0.0597212,83721.0,83720.0,0.1194371]
[1742026757567,1.16722451,83735.0,83720.0,0.1194371]
[1742026757568,0.2424791,83723.0,83722.0,0.1194405]
[1742026757771,0.3608,83726.0,83725.0,0.1194362]
[1742026757772,0.4802377,83726.0,83725.0,0.1194362]
[1742026757957,0.4802377,83726.0,83723.0,0.0597189]
[1742026757958,0.1194376,83724.0,83723.0,0.0628]
[1742026758263,0.3334432,83724.0,83723.0,0.0628]
[1742026759065,0.3334432,83724.0,83723.0,0.1822391]
[1742026759469,0.3334432,83724.0,83723.0,0.0628]
[1742026760560,0.3384432,83724.0,83723.0,0.0628]
[1742026760762,0.3424432,83724.0,83723.0,0.0628]
[1742026761957,0.5824432,83724.0,83723.0,0.0306]
[1742026762163,0.1194448,83719.0,83718.0,0.3608]
[1742026762364,0.3334504,83719.0,83718.0,0.3608]
[1742026763068,0.3642504,83719.0,83718.0,0.3608]
[1742026763371,0.3642504,83719.0,83718.0,0.4802462]
[1742026763570,0.3672504,83719.0,83718.0,0.3608]
[1742026763772,0.3672504,83719.0,83718.0,0.4802462]
[1742026763965,0.1224448,83719.0,83718.0,0.49258152]
[1742026764674,0.1264448,83719.0,83718.0,0.49258152]
[1742026765672,0.1264448,83719.0,83718.0,0.52478152]
[1742026769371,0.36148,83731.0,83730.0,0.1194291]
[1742026769671,0.36144,83741.0,83740.0,0.1194148]
[1742026769875,0.3608,83741.0,83740.0,0.7717748]
[1742026770476,0.3608,83741.0,83740.0,0.8351748]
[1742026770776,0.3608,83741.0,83740.0,1.0951748]
[1742026770981,0.3608,83748.0,83744.0,0.0597042]
[1742026771170,0.4802034,83748.0,83747.0,0.1194048]
[1742026771773,0.1194034,83748.0,83747.0,0.1194048]
[1742026771982,0.1194034,83748.0,83747.0,0.4802048]
[1742026772475,0.1244034,83748.0,83747.0,0.4802048]
[1742026773178,0.005,83748.0,83747.0,0.49206444]
[1742026773378,0.005,83748.0,83747.0,0.61206444]
[1742026773576,0.005,83748.0,83747.0,0.88206444]
[1742026775871,0.00017912,83756.0,83755.0,0.1193934]
[1742026776179,0.00017912,83756.0,83755.0,1.2701934]
[1742026776565,0.00017912,83756.0,83755.0,1.3348934]
[1742026776773,0.0699,83761.0,83760.0,0.1193863]
[1742026777077,0.0699,83761.0,83760.0,0.9701863]
[1742026777482,0.0699,83761.0,83760.0,1.2501863]
[1742026777679,0.0699,83761.0,83760.0,1.0348863]
[1742026778175,0.0719,83761.0,83760.0,1.0348863]
[1742026778966,0.0719,83761.0,83760.0,1.1567663]
[1742026779166,0.0719,83761.0,83760.0,1.4467663]
[1742026779777,0.00017912,83769.0,83760.0,1.4467663]
[1742026779778,0.00017912,83769.0,83766.0,0.0596888]
[1742026780080,0.21418472,83769.0,83768.0,0.4801749]
[1742026780385,0.21418472,83769.0,83768.0,1.0845749]
[1742026780682,0.00017912,83769.0,83768.0,1.0845749]
[1742026782372,0.00017912,83769.0,83768.0,1.34666846]
[1742026782573,0.00317912,83769.0,83768.0,1.34666846]
[1742026782872,0.00317912,83769.0,83768.0,1.09666846]
[1742026784087,0.00435764,84570.0,83768.0,1.09666846]
[1742026784088,0.90692,83781.0,83779.0,0.1193592]
[1742026784284,0.90692,83781.0,83780.0,0.424]
[1742026784285,0.00060001,83781.0,83780.0,0.424]
[1742026784486,0.00060001,83781.0,83780.0,1.0733578]
[1742026784674,0.2140056,83781.0,83780.0,1.0733578]
[1742026785383,0.333362,83781.0,83780.0,1.0733578]
[1742026785588,0.394762,83781.0,83780.0,1.0733578]
[1742026786184,0.1193564,83781.0,83780.0,1.0733578]
[1742026787084,0.1807564,83781.0,83780.0,1.0733578]
[1742026787783,0.1807564,83781.0,83780.0,0.8133578]
[1742026788084,0.394762,83781.0,83780.0,0.5121578]
[1742026788387,0.394762,83781.0,83780.0,0.4801578]
[1742026788882,0.394762,83781.0,83780.0,0.7501578]
[1742026789087,0.394762,83781.0,83780.0,0.4801578]
[1742026789583,0.394762,83781.0,83780.0,0.7601578]
[1742026789772,0.394762,83781.0,83780.0,0.7928578]
[1742026792077,0.394762,83781.0,83780.0,0.8251578]
[1742026792688,0.394762,83781.0,83780.0,0.7924578]
[1742026793284,0.2754056,83781.0,83780.0,1.0724578]
[1742026793491,0.2754056,83781.0,83780.0,1.1028578]
[1742026793689,0.394762,83781.0,83780.0,1.1028578]
[1742026793876,0.333362,83781.0,83780.0,1.1028578]
[1742026794082,0.00017912,83789.0,83788.0,0.1193464]
[1742026794283,0.11952412,83789.0,83788.0,0.4801464]
[1742026794486,0.33352972,83789.0,83788.0,0.4801464]
[1742026794689,0.39762972,83789.0,83788.0,0.4801464]
[1742026797584,0.39762972,83789.0,83788.0,0.9901464]
[1742026797784,0.39762972,83789.0,83788.0,0.4801464]
[1742026799184,0.39762972,83789.0,83788.0,0.3608]
[1742026800188,0.39762972,83789.0,83788.0,0.4801464]
[1742026800388,0.39762972,83789.0,83788.0,0.3608]
[1742026800690,0.39762972,83789.0,83788.0,0.4801464]
[1742026800993,0.39762972,83789.0,83788.0,0.3608]
[1742026801188,0.63762972,83789.0,83788.0,0.3608]
[1742026801390,0.1193564,83781.0,83780.0,0.3608]
[1742026801583,0.1193564,83781.0,83768.0,0.37303585]
[1742026801584,0.1193678,83773.0,83768.0,0.37303585]
[1742026801784,0.3333734,83773.0,83768.0,0.37303585]
[1742026802392,0.3951734,83773.0,83768.0,0.37303585]
[1742026803387,1.0459734,83773.0,83763.0,0.0323]
[1742026803582,0.1193806,83764.0,83763.0,0.04449814]
[1742026803784,0.3333862,83764.0,83763.0,0.04449814]
[1742026804491,0.3980862,83764.0,83763.0,0.04449814]
[1742026805296,0.3980862,83764.0,83763.0,0.01219814]
[1742026805491,0.1193906,83757.0,83756.0,0.0623]
[1742026805997,0.3333962,83757.0,83756.0,0.181692]
[1742026806184,0.3333962,83757.0,83756.0,0.0623]
[1742026806388,0.3942962,83757.0,83756.0,0.01223083]
[1742026806584,0.117392,83756.0,83755.0,0.00017912]
[1742026806785,0.3313976,83756.0,83755.0,0.00017912]
[1742026806985,0.178292,83756.0,83755.0,0.00017912]
[1742026807199,0.3922976,83756.0,83755.0,0.00017912]
[1742026808494,0.1194048,83747.0,83746.0,0.01205476]
[1742026808694,0.1194134,83741.0,83740.0,0.0314]
[1742026809092,0.1194205,83736.0,83732.0,0.1514456]
[1742026809310,0.1194234,83734.0,83733.0,0.0638]
[1742026809803,0.396729,83734.0,83733.0,0.0638]
[1742026810901,0.396729,83734.0,83733.0,0.1832248]
[1742026811496,0.396729,83734.0,83733.0,0.1508248]
[1742026814093,0.366529,83734.0,83733.0,0.1508248]
[1742026814602,0.396729,83734.0,83733.0,0.1508248]
[1742026815104,0.333429,83734.0,83733.0,0.1508248]
[1742026815896,0.364029,83734.0,83733.0,0.1508248]
[1742026816203,0.396229,83734.0,83733.0,0.1508248]
[1742026820106,0.427429,83734.0,83733.0,0.1508248]
[1742026820699,0.427429,83734.0,83725.0,0.00017912]
[1742026820700,0.1194305,83729.0,83725.0,0.00017912]
[1742026820899,0.1194333,83727.0,83726.0,0.0327]
[1742026821295,0.3987389,83727.0,83726.0,0.0327]
[1742026821692,0.1194348,83726.0,83725.0,0.03047912]
[1742026821896,0.3334404,83726.0,83725.0,0.03047912]
[1742026822200,0.3987404,83726.0,83725.0,0.03147912]
[1742026822405,0.3987404,83726.0,83725.0,0.00117912]
[1742026822803,0.3987404,83726.0,83725.0,0.00017912]
[1742026823210,0.3977404,83726.0,83725.0,0.00017912]
[1742026825501,0.3977404,83726.0,83725.0,0.00017912]
[1742026826513,0.3977404,83726.0,83725.0,0.03147912]
[1742026826810,0.3977404,83726.0,83725.0,0.06377912]
[1742026827210,0.3977404,83726.0,83725.0,0.00017912]
[1742026827403,0.0597214,83723.0,83720.0,0.0597209]
[1742026827709,0.1194291,83730.0,83729.0,0.0597145]
[1742026827910,0.1194319,83728.0,83727.0,0.0597159]
[1742026828103,0.3334375,83728.0,83727.0,0.0597159]
[1742026828813,0.3334375,83728.0,83727.0,0.2997159]
[1742026829006,0.3334375,83728.0,83727.0,0.5197159]
[1742026829513,0.4802262,83732.0,83731.0,0.1194276]
[1742026829715,0.6942318,83732.0,83731.0,0.3594276]
[1742026831415,0.6962318,83732.0,83731.0,0.3594276]
[1742026831618,0.6962318,83732.0,83731.0,0.1194276]
[1742026832514,0.6962318,83732.0,83731.0,0.3894276]
[1742026832715,0.6962318,83732.0,83731.0,0.1194276]
[1742026832915,0.4822262,83732.0,83731.0,0.6494276]
[1742026833824,0.4802262,83732.0,83731.0,0.6494276]
[1742026834011,0.5127262,83732.0,83731.0,0.6494276]
[1742026834514,0.7267318,83732.0,83731.0,0.3894276]
[1742026834718,0.7267318,83732.0,83731.0,0.1194276]
[1742026834919,0.7590318,83732.0,83731.0,0.1194276]
[1742026835120,0.7267318,83732.0,83731.0,0.6294276]
[1742026836017,0.7590318,83732.0,83731.0,0.6294276]
[1742026836425,0.7590318,83732.0,83731.0,0.3594276]
[1742026839225,0.4822262,83732.0,83731.0,0.3594276]
[1742026839527,0.002,83732.0,83731.0,0.3594276]
[1742026839718,0.002,83732.0,83731.0,0.9094276]
[1742026839923,0.002,83732.0,83731.0,0.6294276]
[1742026840121,0.1214262,83732.0,83731.0,0.6294276]
[1742026840325,0.002,83732.0,83731.0,0.6294276]
[1742026840830,0.1214262,83732.0,83731.0,0.6294276]
[1742026841020,0.002,83732.0,83731.0,0.6294276]
[1742026841223,0.1214262,83732.0,83731.0,0.3594262]
[1742026841525,0.1214262,83732.0,83731.0,0.5994262]
[1742026843238,0.1214262,83732.0,83731.0,0.3894262]
[1742026843536,0.1526262,83732.0,83731.0,0.3894262]
[1742026843928,0.002,83732.0,83731.0,0.6694262]
[1742026844126,0.002,83732.0,83731.0,0.8994262]
[1742026844531,0.11959962,83736.0,83735.0,0.1194219]
[1742026844721,0.00017912,83736.0,83735.0,0.7025219]
[1742026845126,0.11959962,83736.0,83735.0,0.1525219]
[1742026845538,0.18259962,83736.0,83735.0,0.6425219]
[1742026846839,0.18459962,83736.0,83735.0,0.6425219]
[1742026847043,0.18459962,83736.0,83735.0,0.1525219]
[1742026847044,0.39860522,83736.0,83735.0,0.1525219]
[1742026847747,0.39860522,83736.0,83735.0,0.1832219]
[1742026848142,0.39860522,83736.0,83735.0,0.0638]
[1742026848843,0.39860522,83736.0,83735.0,0.1832219]
[1742026849252,0.39860522,83736.0,83735.0,0.0638]
[1742026849443,0.179145,83730.0,83729.0,0.0597152]
[1742026849752,0.3931506,83730.0,83729.0,0.1334152]
[1742026850344,0.4560506,83730.0,83729.0,0.1334152]
[1742026850947,0.4570506,83730.0,83729.0,0.3934152]
[1742026851142,0.4255506,83730.0,83729.0,0.3934152]
[1742026851536,0.3061201,83730.0,83729.0,0.3934152]
[1742026852244,0.5361201,83730.0,83729.0,0.1620305]
[1742026852545,0.8969201,83730.0,83729.0,0.1520305]
[1742026852743,0.059717,83727.0,83723.0,0.031]
[1742026853047,0.1194433,83721.0,83720.0,0.1194423]
[1742026853247,0.1194433,83721.0,83711.0,0.0900277]
[1742026853248,0.1194433,83720.0,83718.0,0.0597229]
[1742026853453,0.3943489,83720.0,83719.0,0.49249159]
[1742026853644,0.3943489,83720.0,83719.0,0.52469159]
[1742026853846,0.3943489,83720.0,83719.0,0.40524679]
[1742026854658,0.3943489,83720.0,83719.0,0.52569159]
[1742026856152,0.1192,83724.0,83723.0,0.1194391]
[1742026856351,0.0301,83725.0,83724.0,0.1194376]
[1742026856656,0.1495338,83727.0,83726.0,0.1194348]
[1742026856840,0.0316,83728.0,83727.0,0.1194333]
[1742026857045,0.0316,83728.0,83727.0,0.6701333]
[1742026857346,0.1510319,83728.0,83727.0,0.7027333]
[1742026857847,0.1820319,83728.0,83727.0,0.7027333]
[1742026858049,0.0626,83728.0,83727.0,0.7027333]
[1742026858249,0.1820319,83728.0,83727.0,0.7027333]
[1742026858447,0.0636,83728.0,83727.0,0.7027333]
[1742026858855,0.1830319,83728.0,83727.0,0.7027333]
[1742026860454,0.1830319,83728.0,83727.0,0.1827333]
[1742026860658,0.1830319,83728.0,83727.0,0.7327333]
[1742026861056,0.53276,83728.0,83699.0,0.3608]
[1742026861355,0.53276,83728.0,83692.0,0.35757847]
[1742026861356,0.0597269,83713.0,83709.0,0.0597292]
[1742026861557,0.1791864,83711.0,83710.0,0.0912281]
[1742026861751,0.0632,83712.0,83711.0,0.1194562]
[1742026861752,0.2772056,83712.0,83711.0,0.1194562]
[1742026861957,0.1192,83725.0,83718.0,0.0597226]
[1742026862155,0.2386362,83725.0,83724.0,0.1194376]
[1742026862460,0.1194391,83723.0,83722.0,0.0597195]
[1742026862950,0.1502391,83723.0,83722.0,0.0597195]
[1742026863152,0.2484455,83730.0,83724.0,0.0597185]
[1742026863347,0.1194344,83728.0,83727.0,0.1194333]
[1742026863853,0.1499344,83728.0,83727.0,0.3894333]
[1742026864048,0.1499344,83728.0,83727.0,0.1194333]
[1742026864860,0.1529344,83728.0,83727.0,0.1194333]
[1742026865954,0.1224344,83728.0,83727.0,0.1194333]
[1742026866154,0.1224344,83728.0,83727.0,0.6094333]
[1742026866865,0.00017912,83730.0,83729.0,0.1194305]
[1742026867067,0.1194214,83736.0,83734.0,0.1194234]
[1742026867262,0.091407,83741.0,83734.0,0.9602234]
[1742026867263,0.36768828,83735.0,83734.0,0.9602234]
[1742026867569,0.24826638,83735.0,83734.0,0.9602234]
[1742026867754,0.24826638,83735.0,83734.0,1.2302234]
[1742026867954,0.06149556,83746.0,83739.0,0.1194162]
[1742026868152,0.1791186,83742.0,83739.0,0.6194162]
[1742026868357,0.05988502,83743.0,83739.0,0.9094162]
[1742026868659,0.40467873,83740.0,83739.0,0.9094162]
[1742026869554,0.1194148,83740.0,83739.0,0.9094162]
[1742026869753,0.00017912,83743.0,83742.0,0.119412]
[1742026869969,0.00017912,83743.0,83742.0,0.760212]
[1742026870171,0.11958962,83743.0,83742.0,0.760212]
[1742026870471,0.00017912,83743.0,83742.0,1.364412]
[1742026870657,0.00017912,83743.0,83742.0,1.094412]
[1742026870858,0.00017912,83743.0,83742.0,1.40656962]
[1742026871058,0.64141955,83753.0,83752.0,0.1193977]
[1742026871368,0.64141955,83753.0,83752.0,0.3693977]
[1742026871569,0.76081585,83753.0,83752.0,0.3693977]
[1742026872170,0.76081585,83753.0,83752.0,0.1193977]
[1742026874371,0.1203963,83753.0,83752.0,0.1193977]
[1742026874765,0.1203963,83753.0,83752.0,0.3693977]
[1742026874968,0.1511963,83753.0,83752.0,0.1193977]
[1742026875871,0.1791531,83731.0,83730.0,0.1194227]
[1742026876568,0.1791531,83731.0,83730.0,0.1317005]
[1742026876768,0.1791531,83731.0,83730.0,0.0122778]
[1742026876959,0.1194305,83729.0,83728.0,0.1194318]
[1742026877162,0.1194305,83729.0,83722.0,0.0322]
[1742026877163,0.1194391,83723.0,83722.0,0.03237912]
[1742026877366,0.3334447,83723.0,83722.0,0.00017912]
[1742026878769,0.0306,83724.0,83722.0,0.00017912]
[1742026878770,0.0306,83724.0,83723.0,0.1194391]
[1742026878967,0.1500376,83724.0,83723.0,0.4235391]
[1742026879262,0.1500376,83724.0,83723.0,0.1835391]
[1742026879263,0.3640432,83724.0,83723.0,0.1835391]
[1742026879463,0.7248432,83724.0,83723.0,0.0311]
[1742026879775,0.1194391,83723.0,83722.0,0.00117912]
[1742026879958,0.1194533,83714.0,83712.0,0.0311]
[1742026880158,0.1831533,83713.0,83712.0,0.2102813]
[1742026880363,0.1831533,83713.0,83712.0,0.22264653]
[1742026881774,0.1841533,83713.0,83712.0,0.22264653]
[1742026883158,0.0647,83713.0,83712.0,0.22264653]
[1742026883469,0.0647,83713.0,83712.0,0.28264653]
[1742026883769,0.0637,83713.0,83712.0,0.22264653]
[1742026883973,0.0657,83713.0,83712.0,0.22264653]
[1742026884372,0.0306,83713.0,83712.0,0.77264653]
[1742026884564,0.1499448,83719.0,83718.0,0.1194462]
[1742026884873,0.1499448,83719.0,83718.0,0.4802462]
[1742026885469,0.00017912,83721.0,83720.0,0.1194433]
[1742026885964,0.00017912,83721.0,83720.0,0.1694433]
[1742026886165,0.00017912,83721.0,83720.0,0.2023433]
[1742026887066,0.11936,83729.0,83720.0,0.2023433]
[1742026887067,0.0597093,83738.0,83726.0,0.0597167]
[1742026887263,1.0422505,83750.0,83739.0,0.1194162]
[1742026887264,0.0326,83740.0,83739.0,0.1194162]
[1742026887468,0.063,83740.0,83739.0,0.1694162]
[1742026887663,0.12835792,83749.0,83745.0,0.1194077]
[1742026887870,0.21579766,83746.0,83745.0,0.1194077]
[1742026888463,0.2140056,83746.0,83745.0,0.1194077]
[1742026888659,0.2140056,83746.0,83745.0,0.1794077]
[1742026888963,0.14634136,83754.0,83748.0,0.1194034]
[1742026889167,0.14634136,83754.0,83751.0,0.0596989]
[1742026889168,0.1193989,83752.0,83751.0,0.0596989]
[1742026889559,0.1802989,83752.0,83751.0,0.0596989]
[1742026890563,0.0597031,83747.0,83746.0,0.1194034]
[1742026890770,0.1194026,83749.0,83748.0,0.1194034]
[1742026890966,0.059707,83741.0,83723.0,0.3608]
[1742026891169,0.1791429,83732.0,83731.0,0.1194241]
[1742026891474,0.1194291,83730.0,83729.0,0.0597139]
[1742026891977,0.1817291,83730.0,83729.0,0.0597139]
[1742026894073,0.00017912,83738.0,83737.0,0.1194191]
[1742026894374,0.17931182,83738.0,83737.0,0.1194191]
[1742026894570,0.39331742,83738.0,83737.0,0.1194191]
[1742026894765,0.42621742,83738.0,83737.0,0.1194191]
[1742026895380,0.45671742,83738.0,83737.0,0.1194191]
[1742026896064,0.45871742,83738.0,83737.0,0.1194191]
[1742026901891,0.00217912,83738.0,83737.0,0.3694191]
[1742026902180,0.00217912,83738.0,83737.0,0.7302191]
[1742026902779,0.00217912,83738.0,83737.0,0.7611191]
[1742026903384,0.00217912,83738.0,83737.0,0.4003191]
[1742026903783,0.00217912,83738.0,83737.0,0.8903191]
[1742026903986,0.002,83738.0,83737.0,1.983]
[1742026904281,0.12165196,83758.0,83757.0,0.1193906]
[1742026904480,0.12165196,83758.0,83757.0,0.8700706]
[1742026905077,0.12165196,83758.0,83757.0,0.9324706]
[1742026905384,0.12165196,83758.0,83757.0,1.4624706]
[1742026905781,0.1193814,83764.0,83763.0,0.119382]
[1742026906689,0.1193814,83764.0,83763.0,0.183482]
[1742026908082,0.17924652,83766.0,83765.0,0.1193792]
[1742026908281,0.24214652,83766.0,83765.0,0.4801792]
[1742026908482,0.45615212,83766.0,83765.0,0.4801792]
[1742026908690,0.45615212,83766.0,83765.0,0.1193792]
[1742026908991,0.45615212,83766.0,83765.0,0.4801792]
[1742026910390,0.33677362,83766.0,83765.0,1.2401792]
[1742026910989,0.27708472,83766.0,83765.0,1.27239196]
[1742026911696,0.06307912,83766.0,83765.0,1.27239196]
[1742026911994,0.06307912,83766.0,83765.0,0.49239196]
[1742026912692,0.1193617,83778.0,83777.0,0.1193606]
[1742026912891,0.1521592,83779.0,83778.0,0.1193606]
[1742026913393,0.3661648,83779.0,83778.0,0.1193606]
[1742026914078,0.3661648,83779.0,83778.0,0.1496606]
[1742026914493,0.4279648,83779.0,83778.0,0.1496606]
[1742026915382,0.4279648,83779.0,83778.0,0.1193606]
[1742026916786,0.4279648,83779.0,83778.0,0.1495606]
[1742026918493,0.4279648,83779.0,83778.0,0.1808606]
[1742026919983,0.3086056,83779.0,83778.0,0.1808606]
[1742026920187,0.4279648,83779.0,83778.0,0.1495606]
[1742026921288,0.4279648,83779.0,83778.0,0.4195606]
[1742026921484,0.4279648,83779.0,83778.0,0.1807606]
[1742026922587,0.2758056,83779.0,83778.0,0.1807606]
[1742026922999,0.0618,83779.0,83778.0,0.4207606]
[1742026923397,0.1811592,83779.0,83778.0,0.4207606]
[1742026924308,0.0618,83779.0,83778.0,0.4207606]
[1742026924693,0.3608,83789.0,83786.0,0.1193492]
[1742026924898,0.0301,83788.0,83786.0,0.3593492]
[1742026925201,0.21418472,83787.0,83786.0,0.3894492]
[1742026925400,0.21418472,83787.0,83786.0,0.4215492]
[1742026925898,0.24508472,83787.0,83786.0,0.4529492]
[1742026926995,0.00017912,83787.0,83786.0,0.4529492]
[1742026928406,0.00179104,83796.0,83795.0,0.1193364]
[1742026928606,0.00179104,83796.0,83795.0,0.3993364]
[1742026928793,0.00179104,83796.0,83795.0,0.4307364]
[1742026929806,0.00179104,83796.0,83795.0,0.4633364]
[1742026931504,0.0635,83803.0,83799.0,0.1193307]
[1742026931505,0.2193293,83800.0,83799.0,0.1193307]
[1742026931707,0.2193293,83800.0,83799.0,0.3693307]
[1742026931895,0.2193293,83800.0,83799.0,0.4876507]
[1742026932091,0.2193293,83800.0,83799.0,0.2376507]
[1742026932303,0.2193293,83800.0,83799.0,0.3010507]
[1742026932501,0.1,83800.0,83799.0,0.31298525]
[1742026932701,0.1,83800.0,83799.0,0.67378525]
[1742026932901,0.1635,83800.0,83799.0,0.67378525]
[1742026933098,0.1635,83800.0,83799.0,0.31298525]
[1742026933906,0.2828293,83800.0,83799.0,0.31298525]
[1742026935105,0.1635,83800.0,83799.0,0.31298525]
[1742026936800,0.1635,83800.0,83799.0,0.67378525]
[1742026937508,0.1635,83800.0,83799.0,0.92378525]
[1742026938914,0.1,83800.0,83799.0,0.92378525]
[1742026939097,0.1,83800.0,83799.0,1.38378525]
[1742026939297,0.3608,83808.0,83807.0,0.1193193]
[1742026939497,0.3608,83808.0,83807.0,0.3493193]
[1742026940110,0.3608,83808.0,83807.0,0.6795193]
[1742026940409,0.0918521,83818.0,83817.0,0.1193051]
[1742026940602,0.1229521,83818.0,83817.0,0.1193051]
[1742026940797,0.3369577,83818.0,83817.0,0.1193051]
[1742026941610,0.3669577,83818.0,83817.0,0.16163345]
[1742026942398,0.3669577,83818.0,83817.0,0.19163345]
[1742026943013,0.3669577,83818.0,83817.0,0.1795051]
[1742026949215,0.3608,83828.0,83825.0,0.1192937]
[1742026949514,0.3608,83828.0,83825.0,0.4322937]
[1742026949708,0.21418461,83826.0,83825.0,0.4322937]
[1742026950111,0.33347691,83826.0,83825.0,0.1822937]
[1742026951918,0.21418461,83826.0,83825.0,0.1822937]
[1742026952113,0.21418461,83826.0,83825.0,0.4222937]
[1742026952311,0.21418461,83826.0,83825.0,0.1822937]
[1742026953519,0.00017901,83826.0,83825.0,0.7022937]
[1742026953723,0.0329,83833.0,83832.0,0.1192838]
[1742026953916,0.2469056,83833.0,83832.0,0.3992838]
[1742026954220,0.00104001,83847.0,83846.0,0.1192638]
[1742026954521,0.1192681,83843.0,83842.0,0.03]
[1742026954922,0.1192724,83840.0,83839.0,0.1192727]
[1742026955314,0.333278,83840.0,83839.0,0.1192727]
[1742026956207,0.333278,83840.0,83839.0,0.1493727]
[1742026956808,0.2140056,83840.0,83839.0,0.2093727]
[1742026957123,0.063,83842.0,83841.0,0.119271]
[1742026957315,0.063,83842.0,83841.0,0.379271]
[1742026957924,0.0314,83842.0,83841.0,0.379271]
[1742026958425,0.0329,83845.0,83844.0,0.1192667]
[1742026958618,0.2797056,83845.0,83844.0,0.1192667]
[1742026959423,0.3989709,83845.0,83844.0,0.1192667]
[1742026960920,0.2797056,83845.0,83844.0,0.1192667]
[1742026961221,0.0596269,83854.0,83844.0,0.1192667]
[1742026961222,0.38355565,83870.0,83850.0,0.1192581]
[1742026961423,0.38355565,83870.0,83850.0,0.3792581]
[1742026961424,0.0626789,83851.0,83850.0,0.3792581]
[1742026961621,0.11732,83861.0,83851.0,0.1192567]
[1742026961816,0.17982,83861.0,83851.0,0.4120567]
[1742026962015,0.1192443,83860.0,83851.0,0.4120567]
[1742026962211,0.17982,83861.0,83851.0,0.4120567]
[1742026962212,0.0625,83861.0,83860.0,0.1192439]
[1742026962524,0.1817425,83861.0,83860.0,0.1192439]
[1742026962817,0.2765056,83861.0,83860.0,0.3692439]
[1742026963017,0.3957481,83861.0,83860.0,0.1192439]
[1742026963325,0.3957481,83861.0,83860.0,0.1820439]
[1742026964923,0.2140056,83861.0,83860.0,0.1820439]
[1742026965124,0.2140056,83861.0,83860.0,0.4220439]
[1742026965722,0.3332481,83861.0,83860.0,0.4220439]
[1742026966125,0.2140056,83861.0,83860.0,0.4220439]
[1742026966720,0.0653,83863.0,83862.0,0.1192411]
[1742026966920,0.03311661,83869.0,83868.0,0.1192326]
[1742026967124,0.21412221,83869.0,83868.0,0.3992326]
[1742026967426,0.33335331,83869.0,83868.0,0.4616326]
[1742026967623,0.36475331,83869.0,83868.0,0.4616326]
[1742026968918,0.33335331,83869.0,83868.0,0.4616326]
[1742026969717,0.21412221,83869.0,83868.0,0.7234135]
[1742026969919,0.00011661,83869.0,83868.0,0.8342135]
[1742026970222,0.00178935,83873.0,83872.0,0.1192269]
[1742026970429,0.33502045,83873.0,83872.0,0.3392269]
[1742026970731,0.33502035,83873.0,83872.0,0.3392269]
[1742026971230,0.00178935,83873.0,83872.0,0.3392269]
[1742026973126,0.12101475,83873.0,83872.0,0.3392269]
[1742026973923,0.1192283,83871.0,83870.0,0.0596141]
[1742026974831,0.1192283,83871.0,83870.0,0.3296141]
[1742026976324,0.09470275,83873.0,83872.0,0.1192269]
[1742026976325,0.21392925,83873.0,83872.0,0.1192269]
[1742026976517,0.27912925,83873.0,83872.0,0.1192269]
[1742026976718,0.00178935,83873.0,83872.0,0.1192269]
[1742026976918,0.00178935,83873.0,83872.0,0.3592269]
[1742026977335,0.12101475,83873.0,83872.0,0.3592269]
[1742026977631,0.18621475,83873.0,83872.0,0.3592269]
[1742026978025,0.00178935,83873.0,83872.0,0.6292269]
[1742026979829,0.00178935,83873.0,83872.0,0.7464669]
[1742026980837,0.12101475,83873.0,83872.0,0.4764669]
[1742026981129,0.12101475,83873.0,83872.0,0.5080669]
[1742026982532,0.12101475,83873.0,83872.0,0.3908269]
[1742026983233,0.18531475,83873.0,83872.0,0.3908269]
[1742026983830,0.39932035,83873.0,83872.0,0.1192269]
[1742026984033,0.43222035,83873.0,83872.0,0.1192269]
[1742026984231,0.43222035,83873.0,83872.0,0.3592269]
[1742026984432,0.43222035,83873.0,83872.0,0.3913269]
[1742026987843,0.43222035,83873.0,83872.0,0.4216269]
[1742026988341,0.28009495,83873.0,83872.0,0.6816269]
[1742026988530,0.00178935,83873.0,83872.0,0.4216269]
[1742026991239,0.00178935,83873.0,83872.0,0.6716269]
[1742026991439,0.00178935,83873.0,83872.0,0.4216269]
[1742026993149,0.06358935,83873.0,83872.0,0.4216269]
[1742026993761,0.07453546,83873.0,83872.0,0.4216269]
[1742026994854,0.01273546,83873.0,83872.0,0.4216269]
[1742026995155,0.01273546,83873.0,83872.0,0.6516269]
[1742026995563,0.00178935,83873.0,83872.0,0.6516269]
[1742026995763,0.01277537,83873.0,83872.0,0.6516269]
[1742026996261,0.01098602,83873.0,83872.0,0.6516269]
[1742026996554,0.01098602,83873.0,83872.0,0.4216269]
[1742026997955,0.0319,83874.0,83873.0,0.1192254]
[1742026998154,0.0319,83874.0,83873.0,0.3692254]
[1742026998356,0.0319,83874.0,83873.0,0.4641254]
[1742026999264,0.151124,83874.0,83873.0,0.4641254]
[1742026999454,0.0319,83874.0,83873.0,0.4641254]
[1742026999655,0.151124,83874.0,83873.0,0.4641254]
[1742027000061,0.151124,83874.0,83873.0,0.46400637]
[1742027000555,0.3651296,83874.0,83873.0,0.43210637]
[1742027000961,0.151124,83874.0,83873.0,0.43210637]
[1742027001855,0.0319,83874.0,83873.0,0.43210637]
[1742027002757,0.0596106,83876.0,83875.0,0.1192226]
[1742027002959,0.2736162,83876.0,83875.0,0.7400226]
[1742027003366,0.3348162,83876.0,83875.0,0.7400226]
[1742027004168,0.3348162,83876.0,83875.0,0.8047226]
[1742027005074,0.3348162,83876.0,83875.0,0.5447226]
[1742027005478,0.3348162,83876.0,83875.0,0.033]
[1742027005669,0.1192311,83869.0,83868.0,0.4918087]
[1742027005970,0.3332367,83869.0,83868.0,0.7914232]
[1742027006461,0.3634367,83869.0,83868.0,0.7914232]
[1742027007173,0.3947367,83869.0,83868.0,0.7914232]
[1742027007565,0.3947367,83869.0,83868.0,0.8221232]
[1742027008165,0.2755056,83869.0,83868.0,0.8221232]
[1742027009072,0.3947367,83869.0,83868.0,0.8221232]